bitfinex/quotes_ETHUSD_20210401
["timestamp","ask_amount","ask_price","bid_price","bid_amount"]
[1617310349504,0.28,1971.7,1971.2,0.38]
[1617310349705,7.60941,1971.8,1971.3,9.5138]
[1617310349908,7.60941,1971.8,1971.4,0.4]
[1617310351125,7.95941,1971.8,1971.4,0.4]
[1617310351528,7.95941,1971.8,1971.3,10.2844]
[1617310352127,0.35,1971.8,1971.3,10.2844]
[1617310353953,7.95959,1971.8,1971.3,10.2844]
[1617310354155,8.33959,1971.8,1971.3,10.2844]
[1617310354556,0.38,1971.7,1971.3,10.2844]
[1617310354953,0.73,1971.7,1971.3,10.2844]
[1617310355355,0.73,1971.7,1971.3,9.1138]
[1617310355555,0.73,1971.7,1971.2,0.8043]
[1617310355756,0.73,1971.7,1971.0,0.39]
[1617310355956,0.35,1971.6,1971.0,0.39]
[1617310356158,7.61028,1971.5,1970.8,10.23688494]
[1617310356380,7.61028,1971.5,1971.0,0.4]
[1617310356578,0.35,1971.4,1971.0,0.4]
[1617310357278,0.35,1971.4,1970.9,0.38]
[1617310357682,0.35,1971.4,1970.9,7.98984]
[1617310357880,0.35,1971.4,1970.8,2.88]
[1617310357881,0.585,1971.4,1970.8,2.88]
[1617310358084,0.935,1971.2,1970.6,0.19519241]
[1617310358282,0.935,1971.2,1970.6,0.09142494]
[1617310358283,0.175,1971.1,1970.6,0.09142494]
[1617310358482,0.704,1971.2,1970.6,0.09142494]
[1617310358681,0.294,1971.2,1970.6,0.50142494]
[1617310358881,0.786,1971.4,1970.6,1.70142494]
[1617310359109,0.786,1971.4,1970.8,0.4]
[1617310359110,7.89102,1971.3,1970.8,0.4]
[1617310359313,7.89102,1971.3,1970.6,9.31219494]
[1617310359510,7.89102,1971.3,1970.6,12.21219494]
[1617310360910,0.42,1971.2,1970.6,11.01219494]
[1617310361311,7.61102,1971.3,1970.6,12.21219494]
[1617310361512,0.28,1971.3,1970.6,12.21219494]
[1617310362128,0.4,1970.9,1970.6,2.9001]
[1617310362331,0.795,1970.8,1970.6,0.0001]
[1617310362532,0.4,1970.7,1970.6,0.0001]
[1617310363930,10.37969656,1970.7,1970.6,0.0001]
[1617310364129,30.48969656,1970.7,1970.6,0.0001]
[1617310364365,15.38969656,1970.7,1970.6,0.0001]
[1617310365165,23.00317656,1970.7,1970.6,0.0001]
[1617310365961,10.95,1970.6,1970.0,9.6312]
[1617310366161,0.41,1970.4,1970.0,9.6312]
[1617310366362,0.69,1970.4,1970.0,9.6312]
[1617310366563,0.41,1970.4,1970.0,9.2812]
[1617310367180,0.41,1970.4,1970.0,16.89461]
[1617310368782,0.68,1970.5,1970.0,16.89461]
[1617310369183,0.39,1970.4,1970.0,16.89461]
[1617310369608,0.28,1970.5,1970.0,16.89461]
[1617310369807,0.67,1970.5,1970.0,16.89461]
[1617310370007,0.28,1970.5,1970.0,16.89461]
[1617310370811,0.67,1970.5,1970.0,16.89461]
[1617310371008,0.67,1970.5,1970.0,16.87526]
[1617310371608,0.28,1970.5,1970.0,16.87526]
[1617310372007,0.66,1970.5,1970.0,16.87526]
[1617310372237,0.28,1970.5,1970.0,16.87526]
[1617310373346,0.28,1970.5,1970.0,16.86495115]
[1617310373539,0.67,1970.5,1970.0,16.86495115]
[1617310374974,0.28,1970.5,1970.0,16.86495115]
[1617310378080,0.28,1970.6,1970.1,0.4]
[1617310378283,20.7205,1971.1,1970.1,0.4]
[1617310378284,11.9879,1971.1,1970.3,0.39]
[1617310378486,49.3797544,1971.3,1970.5,0.41]
[1617310378487,28.8286,1971.3,1970.5,0.41]
[1617310378682,0.28,1971.2,1970.5,0.41]
[1617310379080,0.66,1971.2,1970.5,0.41]
[1617310379482,0.82,1971.0,1970.4,10.14762]
[1617310380107,0.28,1970.9,1970.4,10.14762]
[1617310381106,0.294,1971.0,1970.6,0.4]
[1617310381303,0.294,1971.0,1970.4,0.4]
[1617310381904,0.684,1971.0,1970.3,2.85132494]
[1617310382103,0.406,1970.9,1970.3,2.85132494]
[1617310382506,0.406,1970.9,1970.4,7.61186]
[1617310383533,38.97774,1971.3,1970.5,0.38]
[1617310383738,7.89149,1971.2,1970.5,7.99125]
[1617310384134,0.42,1971.0,1970.5,7.61125]
[1617310384532,0.68,1970.9,1970.3,0.47132494]
[1617310385555,0.4,1970.9,1970.3,7.70344494]
[1617310385756,0.441,1970.8,1970.3,7.70344494]
[1617310386360,0.441,1970.8,1970.3,10.42344494]
[1617310386557,0.259,1971.0,1970.4,0.41]
[1617310386956,7.61213,1970.9,1970.4,0.41]
[1617310387158,0.441,1970.8,1970.4,0.41]
[1617310387359,0.441,1970.8,1970.3,10.33212]
[1617310387557,7.87113,1970.9,1970.3,10.73212]
[1617310387759,7.87113,1970.9,1970.4,0.4]
[1617310387979,0.441,1970.8,1970.3,10.33212]
[1617310388987,10.14946,1971.1,1970.4,0.4]
[1617310389184,0.39,1971.1,1970.4,0.4]
[1617310389381,0.28,1970.9,1970.4,0.49132494]
[1617310389580,11.28,1970.9,1970.4,0.41]
[1617310390181,18.89189,1970.9,1970.4,0.41]
[1617310390381,18.89189,1970.9,1970.3,2.72]
[1617310390626,0.83,1970.8,1970.3,2.72]
[1617310391826,0.83,1970.8,1970.2,11.34878]
[1617310392026,0.41,1970.6,1970.2,11.34878]
[1617310392225,8.4424,1970.8,1970.2,11.34878]
[1617310393632,8.4424,1970.8,1970.2,1.2]
[1617310393830,8.4424,1970.8,1970.1,1.29732494]
[1617310394030,0.38,1970.5,1970.1,3.63732494]
[1617310394239,0.462,1970.4,1970.1,3.63132494]
[1617310394431,0.462,1970.4,1970.1,3.54]
[1617310394632,10.1805,1970.4,1970.0,9.25154115]
[1617310394833,10.1805,1970.4,1970.0,12.15154115]
[1617310395032,7.5,1970.1,1970.0,12.15154115]
[1617310395235,7.5,1970.1,1970.0,9.25154115]
[1617310395635,17.77409456,1970.1,1970.0,9.25154115]
[1617310395866,25.38929456,1970.1,1970.0,9.25154115]
[1617310397067,26.58929456,1970.1,1970.0,9.25154115]
[1617310397465,27.97408529,1970.1,1970.0,9.25154115]
[1617310397668,26.93229456,1970.1,1970.0,9.25154115]
[1617310397866,33.93229456,1970.1,1970.0,9.25154115]
[1617310398266,32.73229456,1970.1,1970.0,9.25154115]
[1617310398481,33.93229456,1970.1,1970.0,9.25154115]
[1617310398682,32.73229456,1970.1,1970.0,9.25154115]
[1617310398880,25.73229456,1970.1,1970.0,9.25154115]
[1617310399081,25.38929456,1970.1,1970.0,9.20154115]
[1617310399281,32.38929456,1970.1,1970.0,9.20154115]
[1617310399486,25.38929456,1970.1,1970.0,9.20154115]
[1617310399881,18.68929456,1970.1,1970.0,9.20154115]
[1617310400082,18.87929456,1970.1,1970.0,9.20154115]
[1617310401507,23.88929456,1970.1,1970.0,9.20154115]
[1617310403509,23.88929456,1970.1,1970.0,9.00154115]
[1617310405929,23.88929456,1970.1,1970.0,8.95154115]
[1617310406361,20.1152,1970.1,1970.0,8.95154115]
[1617310410584,28.9152,1970.1,1970.0,8.95154115]
[1617310410985,45.1152,1970.1,1970.0,8.95154115]
[1617310411186,38.1152,1970.1,1970.0,8.95154115]
[1617310411386,30.1152,1970.1,1970.0,8.95154115]
[1617310412208,37.1152,1970.1,1970.0,8.95154115]
[1617310412610,45.1152,1970.1,1970.0,8.95154115]
[1617310412809,45.1152,1970.1,1970.0,8.72054115]
[1617310413418,36.3152,1970.1,1970.0,8.72054115]
[1617310413619,27.1152,1970.1,1970.0,8.72054115]
[1617310413810,14.7152,1970.1,1970.0,8.72054115]
[1617310414238,7.6152,1970.1,1970.0,8.72054115]
[1617310417462,18.6652,1970.1,1970.0,8.72054115]
[1617310417664,18.6652,1970.1,1970.0,2.37054115]
[1617310417665,19.0552,1970.1,1970.0,2.37054115]
[1617310417867,69.0652,1970.1,1970.0,2.37054115]
[1617310418865,70.2652,1970.1,1970.0,2.37054115]
[1617310419264,70.2652,1970.1,1969.6,1.0]
[1617310419492,15.19,1969.7,1969.6,1.0]
[1617310419691,14.8,1969.7,1969.6,1.0]
[1617310421292,22.41853,1969.7,1969.6,1.0]
[1617310422715,44.27643,1969.7,1969.6,1.0]
[1617310422915,45.47643,1969.7,1969.6,1.0]
[1617310423312,53.47643,1969.7,1969.6,1.0]
[1617310424511,83.47643,1969.7,1969.6,1.0]
[1617310425335,25.35,1969.6,1969.1,1.0]
[1617310425538,0.38,1969.3,1969.1,1.0]
[1617310425740,0.66,1969.3,1969.1,1.0]
[1617310425936,18.0,1969.2,1969.1,1.0]
[1617310426138,25.62052,1969.2,1969.1,1.0]
[1617310426534,8.02052,1969.2,1969.1,1.0]
[1617310426737,7.62052,1969.2,1969.1,1.0]
[1617310427558,10.16069,1969.3,1969.1,1.0]
[1617310427757,12.2612,1969.4,1969.1,1.0]
[1617310427958,12.2612,1969.4,1969.2,0.38]
[1617310428361,12.2612,1969.4,1969.1,1.0]
[1617310428757,19.87973,1969.4,1969.1,1.41]
[1617310429157,19.87973,1969.4,1969.1,1.0]
[1617310430385,3.02,1969.3,1969.1,1.0]
[1617310430583,3.3,1969.3,1969.1,1.0]
[1617310430989,20.46564842,1969.2,1969.1,1.0]
[1617310431583,16.67016,1969.2,1969.1,1.0]
[1617310433609,7.62016,1969.2,1969.1,1.0]
[1617310434807,8.00016,1969.2,1969.1,1.0]
[1617310435006,11.79564842,1969.2,1969.1,1.0]
[1617310435263,23.84564842,1969.2,1969.1,1.0]
[1617310435462,11.79564842,1969.2,1969.1,1.0]
[1617310436266,18.54564842,1969.2,1969.1,1.0]
[1617310436462,11.79564842,1969.2,1969.1,1.0]
[1617310437063,11.41564842,1969.2,1969.1,1.0]
[1617310438262,22.31564842,1969.2,1969.1,0.95]
[1617310441486,23.51564842,1969.2,1969.1,0.95]
[1617310442081,38.79564842,1969.2,1969.1,0.95]
[1617310442680,37.59564842,1969.2,1969.1,0.95]
[1617310442883,30.79564842,1969.2,1969.1,0.95]
[1617310443105,38.79564842,1969.2,1969.1,0.95]
[1617310443307,27.09564842,1969.2,1969.1,0.95]
[1617310443908,19.09564842,1969.2,1969.1,0.95]
[1617310444714,28.70214842,1969.2,1969.1,0.95]
[1617310445733,29.90214842,1969.2,1969.1,0.95]
[1617310445934,28.97404842,1969.2,1969.1,0.95]
[1617310446134,26.69564842,1969.2,1969.1,0.95]
[1617310446333,19.69564842,1969.2,1969.1,0.95]
[1617310446738,20.08564842,1969.2,1969.1,0.95]
[1617310446935,21.01454842,1969.2,1969.1,0.95]
[1617310447136,36.60414842,1969.2,1969.1,0.95]
[1617310447337,29.15414842,1969.2,1969.1,0.95]
[1617310447536,36.15414842,1969.2,1969.1,0.95]
[1617310448354,36.15414842,1969.2,1969.1,0.9]
[1617310449759,24.96866,1969.2,1969.1,0.9]
[1617310449955,24.68866,1969.2,1969.1,0.9]
[1617310450357,15.75976,1969.2,1969.1,0.9]
[1617310450555,7.62016,1969.2,1969.1,0.9]
[1617310452008,14.62016,1969.2,1969.1,0.9]
[1617310452405,7.62016,1969.2,1969.1,0.9]
[1617310453007,18.01016,1969.2,1969.1,0.9]
[1617310453406,25.01016,1969.2,1969.1,0.9]
[1617310454208,24.62016,1969.2,1969.1,0.9]
[1617310454810,25.01016,1969.2,1969.1,0.9]
[1617310455607,33.01016,1969.2,1969.1,0.9]
[1617310456434,23.01016,1969.2,1969.1,0.9]
[1617310456635,15.01016,1969.2,1969.1,0.9]
[1617310457435,14.62016,1969.2,1969.1,0.9]
[1617310458035,7.62016,1969.2,1969.1,0.9]
[1617310458863,7.61170545,1969.2,1969.1,0.9]
[1617310459060,14.61170545,1969.2,1969.1,0.9]
[1617310460665,14.52960545,1969.2,1969.1,0.9]
[1617310462393,22.52960545,1969.2,1969.1,0.9]
[1617310463385,14.52960545,1969.2,1969.1,0.9]
[1617310464011,7.52960545,1969.2,1969.1,0.9]
[1617310465214,12.53960545,1969.2,1969.1,0.9]
[1617310465812,12.53960545,1969.2,1969.1,7.85]
[1617310466016,12.53960545,1969.2,1969.1,8.26]
[1617310466216,7.52960545,1969.2,1969.1,8.26]
[1617310466836,12.2612,1969.4,1969.1,8.26]
[1617310467036,12.2612,1969.4,1969.3,9.15]
[1617310467235,12.2612,1969.4,1969.3,8.75]
[1617310467835,12.2612,1969.4,1969.3,9.14]
[1617310468236,19.87961,1969.4,1969.3,9.14]
[1617310468835,19.87961,1969.4,1969.3,0.39]
[1617310469465,19.87961,1969.4,1969.1,0.9]
[1617310469664,19.87961,1969.4,1969.1,1.28]
[1617310469868,7.54048842,1969.3,1969.1,0.9]
[1617310470068,18.61,1969.2,1969.1,0.9]
[1617310470273,18.89,1969.2,1969.1,0.9]
[1617310470466,26.51092,1969.2,1969.1,0.9]
[1617310471268,43.33552,1969.2,1969.1,0.9]
[1617310471467,50.33552,1969.2,1969.1,0.9]
[1617310471882,42.33552,1969.2,1969.1,0.9]
[1617310472083,28.73552,1969.2,1969.1,0.9]
[1617310473086,36.73552,1969.2,1969.1,0.9]
[1617310475711,28.73552,1969.2,1969.1,0.9]
[1617310475912,36.73552,1969.2,1969.1,0.9]
[1617310479140,37.93552,1969.2,1969.1,0.9]
[1617310479961,36.33552,1969.2,1969.1,0.9]
[1617310480560,28.33552,1969.2,1969.1,0.9]
[1617310480764,19.91092,1969.2,1969.1,0.9]
[1617310480960,12.63092,1969.2,1969.1,0.9]
[1617310484488,7.62092,1969.2,1969.1,0.9]
[1617310484888,7.62092,1969.2,1969.1,1.29]
[1617310485312,7.6185,1969.3,1969.1,1.29]
[1617310485520,12.2612,1969.4,1969.1,1.29]
[1617310485715,12.2612,1969.4,1969.2,0.39]
[1617310486116,12.2612,1969.4,1969.2,7.6366]
[1617310486319,7.61821,1969.4,1969.2,7.6366]
[1617310486518,23.90844,1969.8,1969.2,7.6366]
[1617310486715,14.0298,1969.8,1969.2,7.6366]
[1617310487514,14.0298,1969.8,1969.3,1.2]
[1617310487515,7.61795,1969.5,1969.3,1.2]
[1617310487739,23.9064,1969.8,1969.4,19.99]
[1617310487939,9.0356,1970.1,1969.6,0.4]
[1617310488138,8.6256,1970.1,1969.6,6.5712]
[1617310488338,2.8,1970.0,1969.6,6.5712]
[1617310488737,10.41623,1970.0,1969.6,6.5712]
[1617310489139,7.61623,1970.0,1969.6,6.5712]
[1617310489940,7.61623,1970.0,1969.6,7.7712]
[1617310490140,7.61623,1970.0,1969.6,6.5712]
[1617310491765,7.61623,1970.0,1969.7,1.2]
[1617310492165,7.61623,1970.0,1969.8,0.39]
[1617310492566,7.61623,1970.0,1969.6,6.1712]
[1617310492766,7.61623,1970.0,1969.7,0.4]
[1617310493183,7.61623,1970.0,1969.6,1.2]
[1617310493383,7.61623,1970.0,1969.6,1.59]
[1617310493592,7.61623,1970.0,1969.8,0.39]
[1617310493791,5.01,1970.4,1969.8,0.39]
[1617310494393,0.799,1970.3,1969.5,3.88681336]
[1617310494590,7.61578,1970.1,1969.7,1.2]
[1617310494790,0.39,1970.2,1969.6,0.38]
[1617310494995,0.39,1970.0,1969.5,3.61132494]
[1617310495187,0.39,1970.3,1969.5,3.61132494]
[1617310495632,0.35,1970.2,1969.5,3.99132494]
[1617310495836,7.61561,1970.2,1969.9,0.4]
[1617310496439,22.9,1970.6,1970.0,0.4]
[1617310496635,22.52,1970.6,1970.0,0.4]
[1617310496839,14.3503,1970.6,1970.0,0.4]
[1617310497435,7.61485,1970.4,1970.0,0.4]
[1617310498240,7.61485,1970.4,1969.8,1.2]
[1617310498438,7.61485,1970.4,1969.9,0.41]
[1617310498841,0.504,1970.3,1969.9,0.41]
[1617310499049,0.38,1970.0,1969.5,0.09132494]
[1617310499247,0.196,1969.9,1969.2,0.09132494]
[1617310499442,0.38,1970.0,1969.1,0.9]
[1617310499443,8.12182,1969.7,1969.1,0.9]
[1617310500038,7.61782,1969.7,1969.1,0.9]
[1617310500241,7.61782,1969.7,1969.2,1.2]
[1617310500437,7.61782,1969.7,1969.2,1.59]
[1617310500642,0.4,1969.6,1969.1,0.9]
[1617310501674,0.743,1969.6,1969.1,0.9]
[1617310501871,13.37123,1969.6,1969.1,0.9]
[1617310502072,17.17123,1969.6,1969.1,0.9]
[1617310502672,8.31923,1969.6,1969.1,0.9]
[1617310503072,7.91923,1969.6,1969.1,0.9]
[1617310503730,8.32923,1969.6,1969.1,0.9]
[1617310505132,0.4,1969.4,1969.1,0.9]
[1617310506334,8.0189,1969.4,1969.1,0.9]
[1617310507546,7.6189,1969.4,1969.1,0.9]
[1617310508351,7.6189,1969.4,1969.1,1.29]
[1617310508551,0.7,1969.6,1969.1,0.9]
[1617310508762,5.05,1969.6,1969.1,0.9]
[1617310509162,0.41,1969.4,1969.1,0.9]
[1617310509363,0.7,1969.6,1969.1,0.9]
[1617310509569,1.09,1969.6,1969.1,0.9]
[1617310510162,0.343,1969.4,1969.1,0.9]
[1617310510362,7.61855,1969.4,1969.1,0.9]
[1617310510762,8.02855,1969.4,1969.1,0.9]
[1617310511164,11.08,1969.2,1969.1,0.9]
[1617310511571,18.6999,1969.2,1969.1,0.9]
[1617310516615,7.9999,1969.2,1969.1,0.9]
[1617310516818,7.6199,1969.2,1969.1,0.9]
[1617310519441,20.51633,1969.4,1969.1,0.9]
[1617310519641,3.06,1969.3,1969.1,0.9]
[1617310520842,10.67891,1969.3,1969.1,0.9]
[1617310521040,3.52,1969.2,1969.1,0.9]
[1617310521242,9.32,1969.2,1969.1,0.9]
[1617310521441,3.52,1969.2,1969.1,0.9]
[1617310521642,8.01891,1969.3,1969.1,0.9]
[1617310521867,14.5,1969.2,1969.1,0.9]
[1617310522065,14.9,1969.2,1969.1,0.9]
[1617310522266,3.0,1969.2,1969.1,0.9]
[1617310523268,7.61891,1969.3,1969.1,0.9]
[1617310525692,14.0,1969.2,1969.1,0.9]
[1617310525893,0.4,1969.2,1969.1,0.9]
[1617310526296,7.61891,1969.3,1969.1,0.9]
[1617310527716,7.89891,1969.3,1969.1,0.9]
[1617310527924,8.29891,1969.3,1969.1,0.9]
[1617310528118,4.58,1969.2,1969.1,0.9]
[1617310528317,0.28,1969.3,1969.1,0.9]
[1617310528518,22.66717,1969.4,1969.1,0.9]
[1617310528718,26.45967,1969.2,1969.1,0.9]
[1617310529942,11.05967,1969.2,1969.1,0.9]
[1617310530342,11.46967,1969.2,1969.1,0.9]
[1617310531143,7.61967,1969.2,1969.1,0.9]
[1617310535192,12.8978,1969.4,1969.1,0.9]
[1617310535392,13.1778,1969.4,1969.1,0.9]
[1617310535593,3.5,1969.3,1969.1,0.9]
[1617310536195,11.1187,1969.3,1969.1,0.9]
[1617310536394,3.64,1969.2,1969.1,0.9]
[1617310537194,13.1778,1969.4,1969.1,0.9]
[1617310537812,7.61917,1969.2,1969.1,0.9]
[1617310538618,8.02917,1969.2,1969.1,0.9]
[1617310539014,21.17917,1969.2,1969.1,0.9]
[1617310539612,8.02917,1969.2,1969.1,0.9]
[1617310539812,11.82465842,1969.2,1969.1,0.9]
[1617310541064,8.02917,1969.2,1969.1,0.9]
[1617310543871,7.61917,1969.2,1969.1,0.9]
[1617310546092,15.46917,1969.2,1969.1,0.9]
[1617310547291,7.61917,1969.2,1969.1,0.9]
[1617310548921,13.21917,1969.2,1969.1,0.9]
[1617310549118,7.61917,1969.2,1969.1,0.9]
[1617310553082,11.80465842,1969.2,1969.1,0.9]
[1617310553487,8.00917,1969.2,1969.1,0.9]
[1617310556335,7.61917,1969.2,1969.1,0.9]
[1617310562261,12.15917,1969.2,1969.1,0.9]
[1617310562461,7.61917,1969.2,1969.1,0.9]
[1617310563062,20.51625,1969.4,1969.1,0.9]
[1617310563261,3.34,1969.3,1969.1,0.9]
[1617310564088,10.95875,1969.3,1969.1,0.9]
[1617310565089,15.43,1969.2,1969.1,0.9]
[1617310565489,3.34,1969.3,1969.1,0.9]
[1617310566092,13.87006,1969.2,1969.1,0.9]
[1617310566294,7.62006,1969.2,1969.1,0.9]
[1617310568115,8.01006,1969.2,1969.1,0.9]
[1617310569342,8.29006,1969.2,1969.1,0.9]
[1617310570741,13.84006,1969.2,1969.1,0.9]
[1617310571141,8.29006,1969.2,1969.1,0.9]
[1617310571342,7.90006,1969.2,1969.1,0.9]
[1617310571772,22.66644,1969.4,1969.1,1.3]
[1617310571972,12.5078,1969.4,1969.1,1.3]
[1617310572571,12.5078,1969.4,1969.1,0.9]
[1617310574399,12.5078,1969.4,1969.1,8.51741]
[1617310576802,12.5078,1969.4,1969.1,0.9]
[1617310579839,12.7878,1969.4,1969.1,0.9]
[1617310580042,13.1878,1969.4,1969.1,0.9]
[1617310580640,0.39,1969.3,1969.1,0.9]
[1617310582267,7.61941,1969.2,1969.1,0.9]
[1617310582894,13.2718,1969.4,1969.1,0.9]
[1617310583291,3.44,1969.3,1969.1,0.9]
[1617310584290,12.9078,1969.4,1969.1,0.9]
[1617310584491,13.1878,1969.4,1969.1,0.9]
[1617310584911,12.7878,1969.4,1969.1,0.9]
[1617310586512,13.1878,1969.4,1969.1,0.9]
[1617310586713,3.12,1969.3,1969.1,0.9]
[1617310587721,7.33,1969.2,1969.1,0.9]
[1617310588518,0.38,1969.2,1969.1,0.9]
[1617310589520,0.38,1969.2,1969.1,0.906]
[1617310589719,7.99897,1969.2,1969.1,0.906]
[1617310589919,7.61897,1969.2,1969.1,0.906]
[1617310592346,7.61897,1969.2,1969.1,0.9]
[1617310593968,12.19897,1969.2,1969.1,0.9]
[1617310594770,12.57897,1969.2,1969.1,0.9]
[1617310596995,12.14897,1969.2,1969.1,0.9]
[1617310598625,12.54897,1969.2,1969.1,0.9]
[1617310601680,12.14897,1969.2,1969.1,0.9]
[1617310601877,4.58,1969.2,1969.1,0.906]
[1617310602275,4.58,1969.2,1969.1,8.656]
[1617310602477,20.12629,1969.4,1969.1,8.656]
[1617310602675,3.06,1969.3,1969.1,8.656]
[1617310602876,3.06,1969.3,1969.1,0.906]
[1617310604278,12.7878,1969.4,1969.1,0.906]
[1617310604479,12.7878,1969.4,1969.2,0.006]
[1617310606906,20.40612,1969.4,1969.1,0.906]
[1617310607105,3.12,1969.3,1969.1,0.906]
[1617310608104,3.12,1969.3,1969.2,0.006]
[1617310609232,3.12,1969.3,1969.1,0.91793618]
[1617310609432,3.12,1969.3,1969.1,0.906]
[1617310610032,12.5078,1969.4,1969.2,0.006]
[1617310610232,14.3386,1969.6,1969.2,0.006]
[1617310610434,14.6186,1969.6,1969.2,0.006]
[1617310610834,14.6186,1969.6,1969.3,0.006]
[1617310611651,14.6186,1969.6,1969.2,0.006]
[1617310612049,22.23611,1969.6,1969.2,0.006]
[1617310613251,3.38,1969.5,1969.2,0.006]
[1617310613668,22.23611,1969.6,1969.2,0.006]
[1617310613875,0.4,1969.5,1969.2,0.006]
[1617310614673,8.99,1969.3,1969.2,0.006]
[1617310615071,0.39,1969.2,1969.1,0.906]
[1617310615272,6.29,1969.2,1969.1,0.906]
[1617310615672,5.9,1969.2,1969.1,0.906]
[1617310615874,13.5199,1969.2,1969.1,0.906]
[1617310616071,13.5199,1969.2,1969.1,0.9]
[1617310616925,7.6199,1969.2,1969.1,0.9]
[1617310618321,0.41,1969.3,1969.1,0.9]
[1617310618621,1.04,1969.4,1969.1,0.9]
[1617310619225,1.04,1969.4,1969.1,0.906]
[1617310620030,7.49,1969.2,1969.1,0.906]
[1617310620230,0.39,1969.2,1969.1,0.9]
[1617310620830,0.07,1969.4,1969.1,0.9]
[1617310621029,0.4,1969.3,1969.1,0.9]
[1617310621230,7.61897,1969.2,1969.1,0.9]
[1617310621848,0.4,1969.3,1969.1,0.9]
[1617310622448,7.61856,1969.3,1969.1,0.9]
[1617310622650,0.28,1969.4,1969.1,0.906]
[1617310623448,14.7286,1969.6,1969.2,0.006]
[1617310623648,10.78809,1969.5,1969.2,0.006]
[1617310623848,10.39809,1969.5,1969.2,0.006]
[1617310624047,7.61809,1969.5,1969.2,0.006]
[1617310624685,0.39,1969.6,1969.2,0.006]
[1617310624879,0.67,1969.6,1969.2,7.433]
[1617310625878,8.28745,1969.6,1969.2,7.433]
[1617310626477,7.89745,1969.6,1969.2,7.433]
[1617310627526,7.89745,1969.6,1969.3,0.39]
[1617310627527,7.61745,1969.6,1969.3,0.39]
[1617310627727,7.61745,1969.6,1969.2,7.433]
[1617310627934,7.61745,1969.6,1969.2,7.833]
[1617310628728,8.01745,1969.6,1969.2,7.433]
[1617310629934,7.61745,1969.6,1969.2,7.433]
[1617310631133,7.61745,1969.6,1969.2,7.833]
[1617310631739,8.01745,1969.6,1969.3,0.006]
[1617310631936,0.41,1969.5,1969.3,0.006]
[1617310632359,0.357,1969.6,1969.3,0.006]
[1617310632564,0.357,1969.6,1969.2,0.006]
[1617310632758,0.757,1969.6,1969.2,0.006]
[1617310632958,7.61776,1969.5,1969.2,0.006]
[1617310633760,7.56776,1969.5,1969.2,0.006]
[1617310636084,0.39,1969.3,1969.2,0.006]
[1617310636286,0.67,1969.3,1969.2,0.006]
[1617310637302,8.28853,1969.3,1969.2,0.006]
[1617310639505,7.89853,1969.3,1969.2,0.006]
[1617310639707,0.66,1969.3,1969.2,0.006]
[1617310640532,0.38,1969.3,1969.2,0.006]
[1617310640735,11.79425842,1969.3,1969.2,0.006]
[1617310640932,7.99877,1969.3,1969.2,0.006]
[1617310643171,10.75877,1969.3,1969.2,0.006]
[1617310646084,14.55425842,1969.3,1969.2,0.006]
[1617310646883,14.55425842,1969.3,1969.1,0.906]
[1617310647086,19.2,1969.2,1969.1,0.91793802]
[1617310647284,33.84978,1969.2,1969.1,0.91793802]
[1617310647485,37.10978,1969.2,1969.1,0.906]
[1617310647691,37.10978,1969.2,1969.1,0.9]
[1617310648109,37.38978,1969.2,1969.1,0.9]
[1617310649104,30.38978,1969.2,1969.1,0.9]
[1617310649705,31.58978,1969.2,1969.1,0.9]
[1617310650306,38.58978,1969.2,1969.1,0.9]
[1617310650728,49.58978,1969.2,1969.1,0.0001]
[1617310650926,59.96448,1969.2,1968.6,1.01790932]
[1617310651127,0.41,1968.7,1968.6,0.98594887]
[1617310651333,27.3066,1968.7,1968.6,0.96803955]
[1617310651526,27.4046,1968.7,1968.6,0.96803955]
[1617310651725,32.4146,1968.7,1968.6,0.96803955]
[1617310652126,40.03671,1968.7,1968.6,0.96803955]
[1617310652325,19.97671,1968.7,1968.6,0.96803955]
[1617310652525,20.35671,1968.7,1968.6,0.96803955]
[1617310652725,21.99671,1968.7,1968.6,0.91803955]
[1617310652923,15.34671,1968.7,1968.6,0.91803955]
[1617310655776,26.09671,1968.7,1968.6,0.69844055]
[1617310656578,20.74671,1968.7,1968.6,0.69844055]
[1617310657682,15.34671,1968.7,1968.6,0.69844055]
[1617310658702,21.79671,1968.7,1968.6,0.69844055]
[1617310659704,27.09671,1968.7,1968.6,0.69844055]
[1617310659904,21.79671,1968.7,1968.6,0.69844055]
[1617310660604,29.09671,1968.7,1968.6,0.69844055]
[1617310661227,21.79671,1968.7,1968.6,0.69844055]
[1617310666282,15.34671,1968.7,1968.6,0.69844055]
[1617310666680,5.18,1968.6,1968.1,0.95]
[1617310666884,29.26,1968.2,1968.1,0.95]
[1617310667082,37.0881,1968.2,1968.1,0.95]